fUST/lending_fUST_20251108
["ID","MTS","AMOUNT","RATE_DAILY","PERIOD"]
[393372339,1762540452594,-428.65187564,0.00016929,2]
[393372340,1762540452626,-150.0,0.000171,2]
[393372341,1762540452655,-150.0,0.000171,2]
[393372342,1762540452687,-150.0,0.00017812,2]
[393372343,1762540452716,-300.0,0.00018523,2]
[393372344,1762540452748,-2642.70624872,0.00018524,2]
[393372345,1762540452832,-2357.29375128,0.00018524,2]
[393372346,1762540465854,5000.0,0.00018524,2]
[393372347,1762540474326,285.42249744,0.00018524,2]
[393372348,1762540474348,574.84642099,0.00018524,2]
[393372349,1762540489316,5000.0,0.00018524,2]
[393372350,1762540511377,4425.16357901,0.00018524,2]
[393372351,1762540511400,574.83642099,0.00018524,2]
[393372352,1762540522247,150.0,0.000185,2]
[393372353,1762540532740,150.0,0.000185,2]
[393372354,1762540533509,5000.0,0.00018524,2]
[393372355,1762540543833,150.0,0.000185,2]
[393372356,1762540550019,-5000.0,0.00018711,2]
[393372357,1762540555993,-150.0,0.000185,2]
[393372358,1762540556035,-1200.0,0.00018898,2]
[393372359,1762540556068,-300.0,0.00018899,2]
[393372360,1762540556099,-300.0,0.00018899,2]
[393372361,1762540556127,-300.0,0.00018899,2]
[393372362,1762540556290,-300.0,0.00018899,2]
[393372363,1762540556321,-300.0,0.00018899,2]
[393372364,1762540556351,-1000.0,0.0001941,2]
[393372365,1762540556387,-177.0,0.00019812,2]
[393372366,1762540556417,-744.6421092,0.0001982,2]
[393372367,1762540562107,-5000.0,0.00018709,2]
[393372368,1762540568233,-150.0,0.000185,2]
[393372369,1762540568261,-150.0,0.000185,2]
[393372370,1762540568289,-456.7257816,0.0001982,2]
[393372371,1762540568317,-150.9676235,0.0002009,2]
[393372372,1762540571800,5000.0,0.0002076,2]
[393372373,1762540573645,150.0,0.000185,2]
[393372374,1762540575190,150.0,0.000185,2]
[393372375,1762540579762,2884.6231898,0.0002076,2]
[393372376,1762540584501,-150.0,0.000185,2]
[393372377,1762540584530,-2115.3768102,0.0002076,2]
[393372378,1762540586399,150.0,0.000185,2]
[393372380,1762540595170,150.0,0.000185,2]
[393372381,1762540595444,5000.0,0.0002076,2]
[393372382,1762540597423,150.0,0.000185,2]
[393372383,1762540603337,5000.0,0.0002076,2]
[393372384,1762540606124,150.0,0.000185,2]
[393372385,1762540608515,150.0,0.000185,2]
[393372386,1762540616187,150.0,0.000185,2]
[393372387,1762540618737,150.0,0.000185,2]
[393372388,1762540620661,4400.01,0.0002096,2]
[393372389,1762540620688,599.99,0.0002096,2]
[393372390,1762540624999,150.0,0.000185,2]
[393372391,1762540627244,150.0,0.000185,2]
[393372392,1762540629049,5000.0,0.0002096,2]
[393372393,1762540630284,150.0,0.000185,2]
[393372394,1762540632976,500.0,0.00018132,2]
[393372395,1762540633246,500.0,0.00019204,2]
[393372396,1762540633491,164.1545344,0.00020166,2]
[393372397,1762540636526,150.0,0.000185,2]
[393372398,1762540637416,150.0,0.000185,2]
[393372399,1762540640482,150.0,0.000185,2]
[393372400,1762540644709,2335.8654656,0.0002096,2]
[393372401,1762540644732,2664.1345344,0.0002096,2]
[393372402,1762540647829,150.0,0.000185,2]
[393372403,1762540648191,150.0,0.000185,2]
[393372404,1762540651211,150.0,0.000185,2]
[393372405,1762540652982,1736.90458064,0.0002096,2]
[393372406,1762540668682,5000.0,0.0002096,2]
[393372407,1762540691070,148.97088496,0.0002096,2]
[393372408,1762540691092,4608.00770702,0.0002096,2]
[393372409,1762540739414,206.15116614,0.00018611,2]
[393372410,1762540742926,5185.85112684,0.00020318,2]
[393372411,1762540742948,2074.70684426,0.00020318,2]
[393372412,1762540745761,5962.9885621,0.00019546,2]
[393372433,1762540838367,169.5040302,0.00010357,2]
[393372434,1762540864021,500.0,0.00020944,2]
[393372435,1762540864417,204.1408785,0.00020954,2]
[393372436,1762540902173,-931.38315506,0.00020963,2]
[393372437,1762540902200,-1029.0,0.00020963,2]
[393372439,1762540909567,461.4002975,0.00020963,2]
[393372440,1762540912555,830.52053551,0.00020963,2]
[393372442,1762540932470,509.26905,0.00020371,2]
[393372443,1762540944846,500.0,0.00020963,2]
[393372444,1762541006053,1655.79227566,0.00020963,2]
[393372445,1762541008326,2122.26153121,0.00020963,2]
[393372446,1762541008348,464.91389951,0.00020963,2]
[393372449,1762541212406,1476.48095201,0.00020963,2]
[393372450,1762541311218,3725.53262024,0.00020963,2]
[393372451,1762541313766,4797.99642775,0.00020963,2]
[393372452,1762541313789,272.86741646,0.00020963,2]
[393372479,1762541432024,-650.0,0.00021081,2]
[393372480,1762541432079,-386.0,0.00021081,2]
[393372481,1762541432088,-150.0,0.00021081,2]
[393372482,1762541432097,-301.04389206,0.000211,2]
[393372503,1762541438105,-546.715,0.000211,2]
[393372504,1762541438117,-5775.41021059,0.000211,2]
[393372505,1762541438127,-362.07911805,0.00021165,5]
[393372506,1762541438137,-1206.33567136,0.00021174,2]
[393372507,1762541438149,-1061.86066332,0.00021174,2]
[393372508,1762541438164,-517.48270629,0.00021174,2]
[393372509,1762541438174,-300.0,0.00021216,2]
[393372510,1762541438184,-537.88685259,0.00021218,5]
[393372511,1762541438194,-373.77650396,0.00021259,2]
[393372512,1762541438212,-1933.22498356,0.00021259,2]
[393372513,1762541438221,-354.89,0.00021264,10]
[393372514,1762541438231,-2132.18984896,0.00021266,2]
[393372515,1762541438241,-2132.18984896,0.00021269,2]
[393372516,1762541438250,-2132.18984896,0.00021272,2]
[393372517,1762541438260,-504.05745479,0.00021273,2]
[393372518,1762541438269,-500.0,0.00021273,2]
[393372519,1762541438279,-500.0,0.00021273,2]
[393372520,1762541438288,-500.0,0.00021273,2]
[393372521,1762541438298,-476.1394878,0.00021273,2]
[393372522,1762541438308,-555.4932381,0.00021273,2]
[393372523,1762541438317,-500.0,0.00021273,2]
[393372524,1762541438329,-500.0,0.00021273,2]
[393372525,1762541438342,-1433.31266188,0.00021273,2]
[393372526,1762541438352,-286.54811089,0.00021273,2]
[393372527,1762541438361,-500.0,0.00021273,2]
[393372528,1762541438371,-500.0,0.00021273,2]
[393372529,1762541438381,-1433.31266188,0.00021273,2]
[393372530,1762541438391,-500.0,0.00021273,2]
[393372531,1762541438400,-500.0,0.00021273,2]
[393372532,1762541438410,-614.22396037,0.00021273,2]
[393372533,1762541438419,-1433.31266188,0.00021273,2]
[393372534,1762541438429,-500.0,0.00021273,2]
[393372535,1762541438439,-406.68290927,0.00021273,2]
[393372536,1762541438448,-500.0,0.00021273,2]
[393372537,1762541438462,-1433.31266188,0.00021273,2]
[393372538,1762541438471,-500.0,0.00021273,2]
[393372539,1762541438482,-541.58669404,0.00021273,2]
[393372540,1762541438492,-1433.31266188,0.00021273,2]
[393372541,1762541438501,-500.0,0.00021273,2]
[393372542,1762541438511,-1433.31266188,0.00021273,2]
[393372543,1762541438521,-500.0,0.00021273,2]
[393372544,1762541438532,-500.0,0.00021273,2]
[393372545,1762541438541,-500.0,0.00021273,2]
[393372546,1762541438551,-1433.31266188,0.00021273,2]
[393372547,1762541438561,-500.0,0.00021273,2]
[393372548,1762541438573,-1433.31266188,0.00021273,2]
[393372549,1762541438710,-67.44866353,0.00021273,2]
[393372588,1762541440186,-432.55133647,0.00021273,2]
[393372590,1762541440196,-500.0,0.00021273,2]
[393372592,1762541440206,-240.58113804,0.00021273,2]
[393372594,1762541440215,-1066.53252549,0.00021273,2]
[393372596,1762541440227,-366.78013639,0.00021273,2]
[393372597,1762541440237,-500.0,0.00021273,2]
[393372599,1762541440246,-500.0,0.00021273,2]
[393372601,1762541440255,-1433.31266188,0.00021273,2]
[393372603,1762541440265,-1433.31266188,0.00021273,2]
[393372605,1762541440274,-1345.82820477,0.00021273,2]
[393372869,1762541443152,-295.74,0.00021265,10]
[393372870,1762541443161,-87.48445711,0.00021273,2]
[393372871,1762541443170,-500.0,0.00021273,2]
[393372872,1762541443179,-1433.31266188,0.00021273,2]
[393372873,1762541443188,-500.0,0.00021273,2]
[393372874,1762541443197,-227.60684961,0.00021273,2]
[393372875,1762541443310,-500.0,0.00021273,2]
[393372922,1762541513017,215.6914277,0.00020273,2]
[393372923,1762541521718,159.79857877,0.0002076,2]
[393372924,1762541526861,5000.0,0.00020968,2]
[393372925,1762541535780,4840.21142123,0.00020968,2]
[393372926,1762541535805,159.78857877,0.00020968,2]
[393372927,1762541550971,5000.0,0.00020968,2]
[393372928,1762541573348,4840.22142123,0.00020968,2]
[393372929,1762541573472,159.77857877,0.00020968,2]
[393372930,1762541581647,5000.0,0.00020968,2]
[393372931,1762541596920,4840.23142123,0.00020968,2]
[393372932,1762541596944,159.76857877,0.00020968,2]
[393372933,1762541605430,5000.0,0.00020968,2]
[393372934,1762541607242,3587.0,0.00037079,20]
[393372939,1762541777549,424.804148,0.00013699,2]
[393372940,1762541777772,424.804148,0.00020187,2]
[393372941,1762541795324,664.035196,0.00020234,2]
[393372943,1762541993467,1397.7477053,0.00020227,2]
[393372945,1762542007519,5000.0,0.00020968,2]
[393372946,1762542016202,1200.0,0.00020968,2]
[393372947,1762542031833,3800.01,0.00020968,2]
[393372948,1762542031857,1199.99,0.00020968,2]
[393372949,1762542054637,5000.0,0.00020968,2]
[393372950,1762542069419,1594.0,0.00020885,2]
[393372951,1762542077517,2206.02,0.00020968,2]
[393372952,1762542077540,1506.62976396,0.00020968,2]
[393372953,1762542080743,1594.0,0.00020855,2]
[393372954,1762542101400,1594.0,0.00020862,2]
[393372955,1762542128140,1594.0,0.00020826,2]
[393372977,1762542138855,1594.0,0.00020898,2]
[393372994,1762542146845,1594.0,0.00020959,2]
[393372996,1762542157189,1594.0,0.00020853,2]
[393372997,1762542163080,1594.0,0.00020784,2]
[393372998,1762542168020,1594.0,0.00020746,2]
[393373001,1762542422673,1595.0,0.00020894,2]
[393373002,1762542427568,1595.0,0.00020878,2]
[393373007,1762542460258,434.01,0.00020357,2]
[393373008,1762542460287,10000.01,0.00020357,2]
[393373009,1762542460314,10000.01,0.00020357,2]
[393373010,1762542460341,10000.01,0.00020357,2]
[393373011,1762542460368,10000.01,0.00020357,2]
[393373012,1762542460392,982.7234341,0.00020357,2]
[393373013,1762542537379,10191.38908732,0.00037125,30]
[393373015,1762542603868,153.33703227,0.00020789,5]
[393373125,1762542632447,-1032.0,0.00021011,2]
[393373127,1762542632457,-1594.0,0.00021011,2]
[393373129,1762542632466,-150.0,0.00021048,2]
[393373131,1762542632475,-305.59175507,0.00021086,2]
[393373133,1762542632484,-97.49805121,0.00021086,2]
[393373136,1762542632495,-190.13939058,0.00021086,2]
[393373137,1762542632504,-246.45,0.00021155,10]
[393373139,1762542632513,-1605.80114595,0.00021158,2]
[393373242,1762542638320,-205.38,0.00021155,10]
[393373243,1762542638330,-831.66801489,0.00021158,2]
[393373244,1762542638340,-520.62862322,0.00021164,2]
[393373245,1762542638350,-300.0,0.00021165,2]
[393373246,1762542638360,-1200.0,0.00021165,2]
[393373247,1762542638370,-4256.88876193,0.00021165,2]
[393373473,1762542646484,-680743.11123807,0.00021165,2]
[393373475,1762542646494,-300.0,0.00021166,2]
[393373476,1762542646503,-285.0,0.00021166,2]
[393373477,1762542646513,-300.0,0.00021166,2]
[393373478,1762542646522,-300.0,0.00021166,2]
[393373479,1762542646531,-8217.88068384,0.00021166,2]
[393373480,1762542646541,-1200.0,0.00021167,2]
[393373481,1762542646551,-2151.54741036,0.0002117,5]
[393373482,1762542646560,-1446.86815573,0.0002117,5]
[393373483,1762542646570,-4836.14069163,0.0002117,5]
[393373484,1762542646580,-1594.0,0.0002118,2]
[393373485,1762542646589,-852.8759396,0.00021196,2]
[393373486,1762542646598,-286.44102282,0.00021196,2]
[393373487,1762542646607,-372.89,0.00021256,2]
[393373488,1762542646616,-6787.17,0.00021258,3]
[393373489,1762542646626,-3393.58,0.00021258,3]
[393373490,1762542646636,-1696.79,0.00021258,3]
[393373491,1762542646646,-848.4,0.00021258,3]
[393373492,1762542646655,-424.2,0.00021258,3]
[393373493,1762542646664,-212.1,0.00021258,3]
[393373494,1762542646674,-636.32,0.00021258,3]
[393373495,1762542646683,-151.0,0.00021265,7]
[393373496,1762542646692,-163.34421,0.00021266,7]
[393373497,1762542646701,-163.34421,0.00021266,7]
[393373498,1762542646710,-163.34421,0.00021266,7]
[393373499,1762542646719,-163.34421,0.00021266,7]
[393373500,1762542646729,-163.34421,0.00021266,7]
[393373501,1762542646738,-163.34421,0.00021266,7]
[393373502,1762542646747,-163.34421,0.00021266,7]
[393373503,1762542646756,-163.34421,0.00021266,7]
[393373504,1762542646766,-163.34421,0.00021266,7]
[393373505,1762542646775,-163.34421,0.00021266,7]
[393373506,1762542646784,-163.34421,0.00021266,7]
[393373507,1762542646793,-163.34421,0.00021266,7]
[393373508,1762542646802,-212.793633,0.00021266,7]
[393373509,1762542646812,-212.793633,0.00021266,7]
[393373510,1762542646821,-212.793633,0.00021266,7]
[393373511,1762542646830,-212.793633,0.00021266,7]
[393373512,1762542646839,-212.793633,0.00021266,7]
[393373513,1762542646852,-212.793633,0.00021266,7]
[393373514,1762542646862,-212.793633,0.00021266,7]
[393373515,1762542646872,-212.793633,0.00021266,7]
[393373516,1762542646881,-212.793633,0.00021266,7]
[393373517,1762542646891,-212.793633,0.00021266,7]
[393373518,1762542646900,-212.793633,0.00021266,7]
[393373519,1762542646910,-212.793633,0.00021266,7]
[393373520,1762542646920,-500.0,0.00021266,2]
[393373521,1762542646929,-151.0,0.00021266,2]
[393373522,1762542646938,-1208.0,0.00021266,2]
[393373523,1762542646948,-500.0,0.00021266,2]
[393373524,1762542646957,-151.0,0.00021266,2]
[393373525,1762542646967,-153.24300351,0.00021267,7]
[393373526,1762542646976,-209.97796445,0.00021267,7]
[393373527,1762542646985,-151.0,0.00021267,7]
[393373528,1762542646994,-151.0,0.00021268,2]
[393373529,1762542647003,-236.263936,0.00021268,2]
[393373530,1762542647012,-151.0,0.00021268,2]
[393373531,1762542647022,-151.0,0.00021268,2]
[393373532,1762542647031,-500.0,0.00021271,7]
[393373533,1762542647040,-852.87593958,0.00021272,2]
[393373534,1762542647049,-500.0,0.00021273,2]
[393373535,1762542647059,-527.10695619,0.00021273,2]
[393373536,1762542647069,-308.08319139,0.00021273,2]
[393373537,1762542647078,-500.0,0.00021273,2]
[393373538,1762542647087,-500.0,0.00021273,2]
[393373539,1762542647097,-150.35031034,0.00021273,2]
[393373540,1762542647106,-506.93446009,0.00021273,2]
[393373541,1762542647115,-329.43474587,0.00021273,2]
[393373542,1762542647124,-472.99911984,0.00021273,2]
[393373543,1762542647133,-500.0,0.00021273,2]
[393373544,1762542647142,-151.0,0.00021273,2]
[393373545,1762542647151,-151.0,0.00021273,2]
[393373546,1762542647160,-151.0,0.00021273,2]
[393373547,1762542647169,-151.0,0.00021273,2]
[393373548,1762542647178,-1627.4023121,0.00021273,2]
[393373549,1762542647187,-500.0,0.00021274,2]
[393373550,1762542647196,-163.34421,0.00021275,7]
[393373551,1762542647207,-163.34421,0.00021275,7]
[393373552,1762542647216,-163.34421,0.00021275,7]
[393373553,1762542647225,-163.34421,0.00021275,7]
[393373554,1762542647234,-212.793633,0.00021275,7]
[393373555,1762542647243,-212.793633,0.00021275,7]
[393373556,1762542647252,-212.793633,0.00021275,7]
[393373557,1762542647261,-212.793633,0.00021275,7]
[393373558,1762542647270,-1594.0,0.00021296,2]
[393373559,1762542647279,-151.0,0.000213,3]
[393373560,1762542647288,-1594.0,0.00021315,2]
[393373561,1762542647297,-1594.0,0.0002132,2]
[393373562,1762542647306,-500.0,0.00021321,2]
[393373563,1762542647316,-198.0,0.00021321,2]
[393373564,1762542647326,-1208.0,0.00021321,2]
[393373565,1762542647336,-500.0,0.00021321,2]
[393373566,1762542647345,-151.0,0.00021321,2]
[393373567,1762542647354,-255.96776296,0.00021322,7]
[393373568,1762542647363,-151.0,0.00021323,2]
[393373569,1762542647372,-198.0,0.00021323,2]
[393373570,1762542647381,-500.0,0.00021326,7]
[393373571,1762542647390,-151.0,0.00021328,2]
[393373572,1762542647399,-198.0,0.00021328,2]
[393373573,1762542647408,-151.0,0.00021328,2]
[393373574,1762542647417,-198.0,0.00021328,2]
[393373575,1762542647426,-852.87593958,0.00021347,2]
[393373576,1762542647436,-500.0,0.00021376,2]
[393373577,1762542647445,-1208.0,0.00021376,2]
[393373578,1762542647454,-500.0,0.00021376,2]
[393373579,1762542647463,-198.79996884,0.00021376,2]
[393373580,1762542647472,-206.73562834,0.00021378,2]
[393373581,1762542647482,-1064.0,0.00021379,2]
[393373582,1762542647491,-300.0,0.0002138,20]
[393373583,1762542647500,-300.0,0.0002138,20]
[393373584,1762542647509,-300.0,0.0002138,20]
[393373585,1762542647518,-300.0,0.0002138,20]
[393373586,1762542647527,-300.0,0.0002138,20]
[393373587,1762542647537,-300.0,0.0002138,20]
[393373588,1762542647548,-300.0,0.0002138,20]
[393373589,1762542647559,-300.0,0.0002138,20]
[393373590,1762542647569,-300.0,0.0002138,20]
[393373591,1762542647579,-300.0,0.0002138,20]
[393373592,1762542647588,-300.0,0.0002138,20]
[393373593,1762542647597,-300.0,0.0002138,20]
[393373594,1762542647606,-300.0,0.0002138,20]
[393373595,1762542647614,-300.0,0.0002138,20]
[393373596,1762542647623,-300.0,0.0002138,20]
[393373597,1762542647632,-500.0,0.00021381,7]
[393373598,1762542647642,-151.0,0.00021383,2]
[393373599,1762542647653,-248.03993149,0.00021383,2]
[393373600,1762542647662,-600.0,0.0002139,20]
[393373601,1762542647672,-151.0,0.000214,4]
[393373602,1762542647682,-852.87593958,0.00021423,2]
[393373603,1762542647692,-500.0,0.0002143,2]
[393373604,1762542647703,-1208.0,0.0002143,2]
[393373605,1762542647719,-500.0,0.0002143,2]
[393373606,1762542647730,-500.0,0.00021435,7]
[393373607,1762542647740,-198.0,0.00021437,2]
[393373608,1762542647750,-1594.0,0.00021447,2]
[393373609,1762542647760,-1594.0,0.00021476,2]
[393373610,1762542647769,-500.0,0.00021485,2]
[393373611,1762542647779,-1208.0,0.00021485,2]
[393373612,1762542647788,-500.0,0.00021485,2]
[393373613,1762542647797,-500.0,0.0002149,7]
[393373614,1762542647807,-852.87593958,0.00021498,2]
[393373615,1762542647817,-1594.0,0.00021526,2]
[393373616,1762542647827,-500.0,0.0002154,2]
[393373617,1762542647837,-1208.0,0.0002154,2]
[393373618,1762542647849,-112.72390535,0.0002154,2]
[393373619,1762542647868,-387.27609465,0.0002154,2]
[393373620,1762542647878,-500.0,0.00021545,7]
[393373621,1762542647888,-132.72389735,0.00021548,2]
[393373622,1762542746900,1180.9034207,0.00020196,2]
[393373624,1762542873902,174.411805,0.0002006,2]
[393373625,1762542883293,319.80298261,0.00019058,2]
[393373626,1762542923272,320.05275933,0.00019058,2]
[393373627,1762543005441,10598.71,0.00037094,20]
[393373628,1762543032269,581.99935693,0.00020742,2]
[393373629,1762543046698,2504.66565118,0.00020888,2]
[393373630,1762543060181,286.44102282,0.0002089,2]
[393373631,1762543075119,1864.81801938,0.00020888,2]
[393373632,1762543077105,1864.81801936,0.00020909,2]
[393373633,1762543079126,748.75993042,0.00020931,2]
[393373634,1762543079149,1116.05808894,0.00020931,2]
[393373635,1762543081077,1864.81801936,0.00020952,2]
[393373636,1762543094871,5000.0,0.00020961,2]
[393373637,1762543103393,178.69344344,0.00020961,2]
[393373638,1762543110985,428.73191045,0.00020878,2]
[393373639,1762543112081,1411.70853781,0.00020961,2]
[393373640,1762543112103,646.99112797,0.00020961,2]
[393373641,1762543126642,338.77136003,0.00020553,2]
[393373642,1762543128029,609.78844805,0.00020689,2]
[393373643,1762543129499,1084.06835208,0.00020825,2]
[393373644,1762543131470,1693.85680013,0.00020961,2]
[393373645,1762543135065,2941.30033422,0.00020961,2]
[393373646,1762543347397,240.51301468,0.00020931,2]
[393373649,1762543367115,2191.58244473,0.00020885,2]
[393373650,1762543409404,1652.27751328,0.00020885,2]
[393373651,1762543411381,1652.27751324,0.00020907,2]
[393373652,1762543413374,1322.05917985,0.00020929,2]
[393373653,1762543413397,330.21833339,0.00020929,2]
[393373654,1762543415366,1652.27751324,0.00020951,2]
[393373657,1762543521327,297.93443895,0.00019058,2]
[393373658,1762543522002,297.93443895,0.00020328,2]
[393373665,1762543664355,7421.64527547,0.00018,2]
[393373666,1762543664379,10000.01,0.00018,2]
[393373667,1762543664402,10000.01,0.00018,2]
[393373668,1762543664426,10000.01,0.00018,2]
[393373669,1762543664451,10000.01,0.00018,2]
[393373670,1762543664474,10000.01,0.00018,2]
[393373671,1762543665366,-250.66297056,0.00018,2]
[393373672,1762543666761,-4125.00259647,0.00018,2]
[393373675,1762543685589,5000.0,0.00020554,2]
[393373677,1762543688996,1000.0,0.00019973,2]
[393373681,1762543693598,250.6641516,0.00020752,2]
[393373686,1762543706364,3749.3458484,0.00017,2]
[393373687,1762543706386,10000.01,0.00017,2]
[393373688,1762543706408,10000.01,0.00017,2]
[393373689,1762543706430,10000.01,0.00017,2]
[393373692,1762543709686,-5000.0,0.0001683,2]
[393373696,1762543710915,-166.56972742,0.00017,2]
[393373697,1762543712419,-243.08541797,0.00017,2]
[393373698,1762543712891,464.84911283,0.0003716,120]
[393373701,1762543714029,-379.09008525,0.00017,2]
[393373702,1762543714940,0.01,0.00016,2]
[393373703,1762543714963,214.16447568,0.00016,2]
[393373707,1762543716861,-396.90186154,0.00017,2]
[393373708,1762543717378,5000.0,0.0001683,2]
[393373711,1762543720036,-174.03950659,0.00017,2]
[393373714,1762543722184,-162.09123032,0.00017,2]
[393373715,1762543723845,-230.47965682,0.00017,2]
[393373716,1762543726537,-293.39816872,0.00017,2]
[393373717,1762543728097,-255.994751,0.00017,2]
[393373718,1762543731691,-348.96251166,0.00017,2]
[393373719,1762543732370,5000.0,0.0001699,2]
[393373720,1762543734348,-201.59698138,0.00017,2]
[393373721,1762543736041,-280.60124478,0.00017,2]
[393373722,1762543736771,5000.01,0.0001699,2]
[393373724,1762543736792,10000.01,0.0001699,2]
[393373725,1762543736813,10000.01,0.0001699,2]
[393373726,1762543738693,-223.98958853,0.0001699,2]
[393373727,1762543745136,-173.4791613,0.0001682,2]
[393373728,1762543746607,-333.74929352,0.0001682,2]
[393373729,1762543750297,-151.0,0.0001682,2]
[393373736,1762543752464,-183.30970447,0.0001682,2]
[393373738,1762543753944,-202.48050986,0.0001682,2]
[393373739,1762543756930,500.0,0.0003716,60]
[393373740,1762543757033,500.0,0.0003716,60]
[393373741,1762543757176,500.0,0.0003716,60]
[393373742,1762543757270,500.0,0.0003716,60]
[393373743,1762543758408,325.99055146,0.0003716,60]
[393373744,1762543770928,-179.25259849,0.00016652,2]
[393373745,1762543773876,-183.49002577,0.00016652,2]
[393373746,1762543777341,-371.37763613,0.00016652,2]
[393373747,1762543781539,-320.87885826,0.00016652,2]
[393373748,1762543784277,-268.171401,0.00016652,2]
[393373750,1762543801065,-207.99109459,0.00016652,2]
[393373751,1762543803153,-267.4125826,0.00016652,2]
[393373752,1762543805191,-180.65511358,0.00016652,2]
[393373753,1762543808443,-233.48197045,0.00016652,2]
[393373754,1762543810610,-294.79700951,0.00016652,2]
[393373755,1762543813811,-173.67237718,0.00016652,2]
[393373756,1762543831262,-300.0,0.00016652,2]
[393373793,1762543832431,-285.95,0.00016652,2]
[393373838,1762543832836,-257.01662649,0.00016652,2]
[393373865,1762543834349,-343.14523591,0.00016652,2]
[393373866,1762543835936,-213.3638526,0.00016652,2]
[393373875,1762543838050,-218.21771364,0.00016652,2]
[393373899,1762543838280,-701.1259038,0.00016652,2]
[393373901,1762543838292,-809.0,0.00016652,2]
[393373903,1762543838301,-150.0,0.00016736,2]
[393373905,1762543838311,-1200.0,0.00016819,2]
[393373907,1762543838323,-3955.98133085,0.0001682,2]
[393373909,1762543838333,-500.0,0.000169,2]
[393373911,1762543838343,-300.0,0.00016972,2]
[393373913,1762543838353,-300.0,0.00016972,2]
[393373915,1762543838363,-300.0,0.00016972,2]
[393373917,1762543838372,-300.0,0.00016972,2]
[393373919,1762543838381,-300.0,0.00016972,2]
[393373921,1762543838391,-500.0,0.00016973,2]
[393373923,1762543838400,-170.34071164,0.00016973,2]
[393373925,1762543838410,-500.0,0.00016973,2]
[393373927,1762543838419,-500.0,0.00016973,2]
[393373929,1762543838428,-503.03160121,0.00016973,2]
[393373931,1762543838438,-500.0,0.00016973,2]
[393373933,1762543838447,-500.0,0.00016973,2]
[393373934,1762543838457,-500.0,0.00016973,2]
[393373936,1762543838466,-500.0,0.00016973,2]
[393373938,1762543838476,-500.9181771,0.00016973,2]
[393373940,1762543838486,-500.0,0.00016973,2]
[393373942,1762543838495,-500.0,0.00016973,2]
[393373944,1762543838505,-500.0,0.00016973,2]
[393373946,1762543838515,-500.0,0.00016973,2]
[393373948,1762543838525,-500.0,0.00016973,2]
[393373950,1762543838534,-500.0,0.00016973,2]
[393373952,1762543838544,-230.82919464,0.00016973,2]
[393373954,1762543838553,-500.0,0.00016973,2]
[393373956,1762543838563,-500.0,0.00016973,2]
[393373958,1762543838573,-500.0,0.00016973,2]
[393373960,1762543838582,-500.0,0.00016973,2]
[393373962,1762543838592,-505.76688572,0.00016973,2]
[393373965,1762543838604,-562.82949153,0.00016973,2]
[393373967,1762543838614,-500.0,0.00016973,2]
[393373969,1762543838624,-500.0,0.00016973,2]
[393373970,1762543838634,-577.14231771,0.00016973,2]
[393373972,1762543838645,-500.0,0.00016973,2]
[393373975,1762543838655,-43243.12303029,0.0001699,2]
[393373977,1762543838668,-31532.85738118,0.0001699,2]
[393373979,1762543838678,-235.2,0.0001699,2]
[393373981,1762543838687,-50000.0,0.0001699,2]